[Event "Fast Chess"]
[Site "ChessKid.com"]
[Date "2020.05.12"]
[Round "3"]
[White "Li, Tobias"]
[Black "Li, Patrick"]
[Result "1-0"]
[ECO "C50"]
[WhiteElo "1398"]
[BlackElo "1297"]
[PlyCount "147"]
[EventDate "2020.??.??"]
[TimeControl "900"]
[WhiteClock "0:09:46"]
[BlackClock "0:09:32"]

1. e4 {[%emt 0:00:01]} e5 {[%emt 0:00:02]} 2. Nf3 {[%emt 0:00:01]} Nc6 {
[%emt 0:00:01]} 3. Bc4 {[%emt 0:00:00]} h6 {[%emt 0:00:03]} 4. O-O {[%emt 0:00:
02]} Nf6 {[%emt 0:00:01]} 5. Nc3 {[%emt 0:00:05]} Bc5 {[%emt 0:00:03]} 6. a3 {
[%emt 0:00:05]} O-O {[%emt 0:00:02]} 7. h3 {[%emt 0:00:01]} d6 {[%emt 0:00:06]}
8. d3 {[%emt 0:00:03]} Re8 {[%emt 0:00:07]} 9. Re1 {[%emt 0:00:04]} Be6 {
[%emt 0:00:04]} 10. Bxe6 {[%emt 0:00:08]} Rxe6 {[%emt 0:00:04]} 11. b4 {
[%emt 0:00:04]} Bb6 {[%emt 0:00:05]} 12. Be3 {[%emt 0:00:12]} Bxe3 {[%emt 0:00:
04]} 13. Rxe3 {[%emt 0:00:05]} Nd4 {[%emt 0:00:05]} 14. Re1 {[%emt 0:00:05]}
Nxf3+ {[%emt 0:00:08]} 15. Qxf3 {[%emt 0:00:02]} Qd7 {[%emt 0:00:09]} 16. Nd5 {
[%emt 0:00:10]} Nxd5 {[%emt 0:00:05]} 17. exd5 {[%emt 0:00:03]} Rf6 {[%emt 0:
00:01]} 18. Qg4 {[%emt 0:00:04]} Qe7 {[%emt 0:00:07]} 19. Qg3 {[%emt 0:00:16]}
Qd7 {[%emt 0:00:10]} 20. Qg4 {[%emt 0:00:02]} Qb5 {[%emt 0:00:02]} 21. Qd1 {
[%emt 0:00:05]} Qb6 {[%emt 0:00:06]} 22. Rb1 {[%emt 0:00:04]} Qxf2+ {[%emt 0:
00:02]} 23. Kh1 {[%emt 0:00:03]} Rg6 {[%emt 0:00:09]} 24. Rg1 {[%emt 0:00:02]}
Rg3 {[%emt 0:00:09]} 25. Qf1 {[%emt 0:00:05]} Qxc2 {[%emt 0:00:05]} 26. Rc1 {
[%emt 0:00:03]} Qd2 {[%emt 0:00:10]} 27. Rd1 {[%emt 0:00:12]} Qb2 {[%emt 0:00:
08]} 28. Qe1 {[%emt 0:00:04]} Rg6 {[%emt 0:00:17]} 29. Ra1 {[%emt 0:00:11]} Re8
{[%emt 0:00:11]} 30. Qe3 {[%emt 0:00:09]} c6 {[%emt 0:00:08]} 31. dxc6 {
[%emt 0:00:04]} bxc6 {[%emt 0:00:02]} 32. Qxa7 {[%emt 0:00:01]} Ree6 {[%emt 0:
00:04]} 33. Qb7 {[%emt 0:00:02]} Ref6 {[%emt 0:00:05]} 34. Qxc6 {[%emt 0:00:09]
} Rf2 {[%emt 0:00:01]} 35. Qa8+ {[%emt 0:00:05]} Kh7 {[%emt 0:00:04]} 36. Qb7 {
[%emt 0:00:03]} f5 {[%emt 0:00:11]} 37. Qa8 {[%emt 0:00:14]} f4 {[%emt 0:00:04]
} 38. Raf1 {[%emt 0:00:17]} Rxf1 {[%emt 0:00:05]} 39. Rxf1 {[%emt 0:00:02]} f3
{[%emt 0:00:04]} 40. Qxf3 {[%emt 0:00:23]} Qxa3 {[%emt 0:00:11]} 41. Qb7 {
[%emt 0:00:03]} Qxd3 {[%emt 0:00:05]} 42. Ra1 {[%emt 0:00:05]} Qb3 {[%emt 0:00:
15]} 43. Qb6 {[%emt 0:00:19]} Qb2 {[%emt 0:00:04]} 44. Rg1 {[%emt 0:00:04]} Rg3
{[%emt 0:00:09]} 45. Qxd6 {[%emt 0:00:08]} e4 {[%emt 0:00:03]} 46. Qxg3 {
[%emt 0:00:07]} Qxb4 {[%emt 0:00:05]} 47. Qe3 {[%emt 0:00:05]} Qe7 {[%emt 0:00:
03]} 48. Re1 {[%emt 0:00:03]} Qe6 {[%emt 0:00:01]} 49. Qxe4+ {[%emt 0:00:04]}
Qxe4 {[%emt 0:00:02]} 50. Rxe4 {[%emt 0:00:03]} h5 {[%emt 0:00:03]} 51. Re7 {
[%emt 0:00:04]} Kh6 {[%emt 0:00:05]} 52. Re6+ {[%emt 0:00:11]} g6 {[%emt 0:00:
01]} 53. Kh2 {[%emt 0:00:04]} h4 {[%emt 0:00:02]} 54. Kh1 {[%emt 0:00:01]} Kh5
{[%emt 0:00:02]} 55. Kh2 {[%emt 0:00:02]} g5 {[%emt 0:00:01]} 56. Re5 {[%emt 0:
00:01]} Kh6 {[%emt 0:00:04]} 57. g4 {[%emt 0:00:01]} Kg6 {[%emt 0:00:02]} 58.
Ra5 {[%emt 0:00:03]} Kf6 {[%emt 0:00:05]} 59. Kg2 {[%emt 0:00:01]} Kg6 {
[%emt 0:00:01]} 60. Kf3 {[%emt 0:00:00]} Kf6 {[%emt 0:00:01]} 61. Ke4 {[%emt 0:
00:02]} Kg6 {[%emt 0:00:00]} 62. Ke5 {[%emt 0:00:02]} Kh6 {[%emt 0:00:04]} 63.
Kf5 {[%emt 0:00:01]} Kh7 {[%emt 0:00:01]} 64. Kxg5 {[%emt 0:00:01]} Kg7 {
[%emt 0:00:03]} 65. Kxh4 {[%emt 0:00:00]} Kf7 {[%emt 0:00:01]} 66. Kg3 {
[%emt 0:00:01]} Kg7 {[%emt 0:00:01]} 67. h4 {[%emt 0:00:01]} Kh7 {[%emt 0:00:
01]} 68. h5 {[%emt 0:00:00]} Kg7 {[%emt 0:00:01]} 69. g5 {[%emt 0:00:01]} Kh7 {
[%emt 0:00:01]} 70. Kf4 {[%emt 0:00:01]} Kg7 {[%emt 0:00:00]} 71. Kf5 {[%emt 0:
00:01]} Kh7 {[%emt 0:00:01]} 72. h6 {[%emt 0:00:01]} Kh8 {[%emt 0:00:02]} 73.
g6 {[%emt 0:00:01]} Kg8 {[%emt 0:00:01]} 74. Ra8# {[%emt 0:00:01]
OnlyHungryKiwi won by checkmate} 1-0

[Event "Fast Chess"]
[Site "ChessKid.com"]
[Date "2020.05.13"]
[Round "1"]
[White "Li, Tobias"]
[Black "Halimi, Dorian"]
[Result "0-1"]
[ECO "B01"]
[WhiteElo "1368"]
[BlackElo "1291"]
[Annotator "Springergabel, Grundlinienschwäche"]
[PlyCount "60"]
[EventDate "2020.??.??"]
[TimeControl "600"]
[WhiteClock "0:08:36"]
[BlackClock "0:07:51"]

1. e4 {[%emt 0:00:02]} d5 {[%emt 0:00:01]} 2. exd5 {[%emt 0:00:03]} Qxd5 {
[%emt 0:00:02]} 3. Nc3 {[%emt 0:00:02]} Qe5+ {[%emt 0:00:02]} 4. Qe2 {[%emt 0:
00:04]} Qxe2+ {[%emt 0:00:03]} 5. Bxe2 {[%emt 0:00:02]} Nf6 {[%emt 0:00:01]} 6.
Nf3 {[%emt 0:00:05]} Bg4 {[%emt 0:00:01]} 7. O-O {[%emt 0:00:02]} e6 {[%emt 0:
00:03]} 8. h3 {[%emt 0:00:02]} Bf5 {[%emt 0:00:03]} 9. d4 {[%emt 0:00:04]} Bd6
{[%emt 0:00:03]} 10. Bd3 {[%emt 0:00:04]} Bxd3 {[%emt 0:00:02]} 11. cxd3 {
[%emt 0:00:02]} O-O {[%emt 0:00:00]} 12. Nb5 {[%emt 0:00:11]} h6 {[%emt 0:00:
07]} 13. Re1 {[%emt 0:00:18]} a6 {[%emt 0:00:05]} 14. Nxd6 {[%emt 0:00:06]}
cxd6 {[%emt 0:00:01]} 15. Bf4 {[%emt 0:00:02]} d5 {[%emt 0:00:03]} 16. Rac1 {
[%emt 0:00:09]} Nc6 {[%emt 0:00:03]} 17. Be5 {[%emt 0:00:06]} Nd7 {[%emt 0:00:
05]} 18. Bg3 {[%emt 0:00:06]} Nb4 {[%emt 0:00:02]} 19. a3 {[%emt 0:00:04]} Na2
$4 {[%emt 0:00:01]} 20. Ra1 {[%emt 0:00:03]} f6 {[%emt 0:00:12]} 21. Rxa2 {
[%emt 0:00:05]} e5 {[%emt 0:00:01]} 22. dxe5 {[%emt 0:00:03]} fxe5 {[%emt 0:00:
01]} 23. Nxe5 {[%emt 0:00:03]} Nxe5 {[%emt 0:00:02]} 24. Bxe5 {[%emt 0:00:02]}
Rfe8 {[%emt 0:00:01]} 25. Raa1 {[%emt 0:00:01]} Re6 {[%emt 0:00:01]} 26. Bh2 {
[%emt 0:00:04]} Rxe1+ {[%emt 0:00:03]} 27. Rxe1 {[%emt 0:00:02]} Rf8 {[%emt 0:
00:04]} 28. Re7 {[%emt 0:00:05]} b5 {[%emt 0:00:03]} 29. Ra7 {[%emt 0:00:04]}
Rc8 {[%emt 0:00:07]} 30. Rxa6 $4 {[%emt 0:00:03]} Rc1# {[%emt 0:00:01]
FullMagentaEclipse won by checkmate} 0-1

[Event "Fast Chess"]
[Site "ChessKid.com"]
[Date "2020.05.13"]
[Round "1"]
[White "Li, Patrick"]
[Black "Sasse, Gabriel"]
[Result "0-1"]
[ECO "C46"]
[WhiteElo "1256"]
[BlackElo "1343"]
[PlyCount "76"]
[EventDate "2020.??.??"]
[TimeControl "600"]
[WhiteClock "0:08:13"]
[BlackClock "0:06:22"]

1. e4 {[%emt 0:00:07]} e5 {[%emt 0:00:01]} 2. Nf3 {[%emt 0:00:01]} Nc6 {
[%emt 0:00:01]} 3. Nc3 {[%emt 0:00:02]} Bc5 {[%emt 0:00:00]} 4. Nxe5 {[%emt 0:
00:04]} Nxe5 {[%emt 0:00:02]} 5. d4 {[%emt 0:00:03]} Bb6 {[%emt 0:00:00]} 6.
dxe5 {[%emt 0:00:02]} h6 {[%emt 0:00:01]} 7. Nd5 {[%emt 0:00:02]} Ne7 {[%emt 0:
00:01]} 8. Nxb6 {[%emt 0:00:07]} cxb6 {[%emt 0:00:02]} 9. Bf4 {[%emt 0:00:03]}
Nc6 {[%emt 0:00:02]} 10. Bb5 {[%emt 0:00:13]} O-O {[%emt 0:00:02]} 11. Bxc6 {
[%emt 0:00:01]} bxc6 {[%emt 0:00:03]} 12. Kf1 {[%emt 0:00:05]} Ba6+ {[%emt 0:
00:02]} 13. Kg1 {[%emt 0:00:09]} Re8 {[%emt 0:00:06]} 14. Qd6 {[%emt 0:00:13]}
Re6 {[%emt 0:00:08]} 15. Qa3 {[%emt 0:00:17]} c5 {[%emt 0:00:14]} 16. Qxa6 {
[%emt 0:00:05]} Qh4 {[%emt 0:00:04]} 17. Bg3 {[%emt 0:00:03]} Qxe4 {[%emt 0:00:
02]} 18. Re1 {[%emt 0:00:08]} Qxe1+ {[%emt 0:00:03]} 19. Qf1 {[%emt 0:00:06]}
Qxf1+ {[%emt 0:00:02]} 20. Kxf1 {[%emt 0:00:09]} f6 {[%emt 0:00:01]} 21. exf6 {
[%emt 0:00:15]} Rxf6 {[%emt 0:00:02]} 22. Be5 {[%emt 0:00:03]} Re6 {[%emt 0:00:
01]} 23. Bc3 {[%emt 0:00:04]} b5 {[%emt 0:00:04]} 24. b4 {[%emt 0:00:06]} cxb4
{[%emt 0:00:02]} 25. Bxb4 {[%emt 0:00:01]} Rae8 {[%emt 0:00:01]} 26. a3 {
[%emt 0:00:03]} d5 {[%emt 0:00:09]} 27. Ba5 {[%emt 0:00:04]} d4 {[%emt 0:00:03]
} 28. c3 {[%emt 0:00:06]} d3 {[%emt 0:00:02]} 29. g3 {[%emt 0:00:04]} d2 {
[%emt 0:00:03]} 30. Kg2 {[%emt 0:00:04]} Rd6 {[%emt 0:00:04]} 31. Rd1 {[%emt 0:
00:05]} Re1 {[%emt 0:00:04]} 32. Rxd2 {[%emt 0:00:07]} Rxd2 {[%emt 0:00:02]}
33. c4 {[%emt 0:00:02]} bxc4 {[%emt 0:00:03]} 34. Bxd2 {[%emt 0:00:02]} Rd1 {
[%emt 0:00:01]} 35. Bf4 {[%emt 0:00:02]} c3 {[%emt 0:00:02]} 36. Kf3 {[%emt 0:
00:14]} c2 {[%emt 0:00:06]} 37. Ke2 {[%emt 0:00:01]} Rd6 {[%emt 0:00:01]} 38.
Bxd6 {[%emt 0:00:16]} c1=Q {[%emt 0:00:01] LimeFarActor won by resignation} 0-1

[Event "Fast Chess"]
[Site "ChessKid.com"]
[Date "2020.05.13"]
[Round "1"]
[White "Horvath, Alexander"]
[Black "Georgiev, Maximilian"]
[Result "1-0"]
[ECO "C20"]
[WhiteElo "1330"]
[BlackElo "1147"]
[PlyCount "146"]
[EventDate "2020.??.??"]
[TimeControl "600"]
[WhiteClock "0:06:15"]
[BlackClock "0:05:54"]

1. e4 {[%emt 0:00:02]} e5 {[%emt 0:00:01]} 2. Qh5 {[%emt 0:00:02]} Nc6 {
[%emt 0:00:02]} 3. Nf3 {[%emt 0:00:04]} d6 {[%emt 0:00:06]} 4. Nc3 {[%emt 0:00:
04]} Nf6 {[%emt 0:00:03]} 5. Qg5 {[%emt 0:00:05]} h6 {[%emt 0:00:03]} 6. Qg3 {
[%emt 0:00:03]} Nh5 {[%emt 0:00:08]} 7. Qh4 {[%emt 0:00:06]} Qxh4 {[%emt 0:00:
02]} 8. Nxh4 {[%emt 0:00:02]} Nf6 {[%emt 0:00:02]} 9. Nf3 {[%emt 0:00:04]} Be7
{[%emt 0:00:01]} 10. Bc4 {[%emt 0:00:03]} O-O {[%emt 0:00:03]} 11. O-O {
[%emt 0:00:03]} a6 {[%emt 0:00:01]} 12. d3 {[%emt 0:00:03]} b5 {[%emt 0:00:02]}
13. Bb3 {[%emt 0:00:02]} b4 {[%emt 0:00:01]} 14. Nd5 {[%emt 0:00:02]} Nxd5 {
[%emt 0:00:03]} 15. exd5 {[%emt 0:00:03]} Na5 {[%emt 0:00:02]} 16. Be3 {
[%emt 0:00:04]} Nxb3 {[%emt 0:00:03]} 17. axb3 {[%emt 0:00:03]} a5 {[%emt 0:00:
01]} 18. Nd2 {[%emt 0:00:03]} Bb7 {[%emt 0:00:03]} 19. Nc4 {[%emt 0:00:01]}
Bxd5 {[%emt 0:00:03]} 20. Rxa5 {[%emt 0:00:02]} Rxa5 {[%emt 0:00:02]} 21. Nxa5
{[%emt 0:00:02]} c5 {[%emt 0:00:06]} 22. Nc4 {[%emt 0:00:04]} Bb7 {[%emt 0:00:
06]} 23. Ra1 {[%emt 0:00:03]} Ra8 {[%emt 0:00:04]} 24. Rxa8+ {[%emt 0:00:05]}
Bxa8 {[%emt 0:00:01]} 25. f3 {[%emt 0:00:08]} d5 {[%emt 0:00:03]} 26. Nb6 {
[%emt 0:00:05]} Bb7 {[%emt 0:00:04]} 27. c3 {[%emt 0:00:03]} d4 {[%emt 0:00:05]
} 28. cxd4 {[%emt 0:00:04]} cxd4 {[%emt 0:00:02]} 29. Bf2 {[%emt 0:00:05]} Kh7
{[%emt 0:00:04]} 30. Nd7 {[%emt 0:00:04]} Bc6 {[%emt 0:00:04]} 31. Nb8 {
[%emt 0:00:04]} Bb7 {[%emt 0:00:03]} 32. Nd7 {[%emt 0:00:03]} f6 {[%emt 0:00:
01]} 33. Nb6 {[%emt 0:00:03]} Bc5 {[%emt 0:00:03]} 34. Na4 {[%emt 0:00:03]} Be7
{[%emt 0:00:03]} 35. Kf1 {[%emt 0:00:09]} g5 {[%emt 0:00:03]} 36. Ke2 {[%emt 0:
00:05]} Kg6 {[%emt 0:00:03]} 37. g3 {[%emt 0:00:03]} Kf5 {[%emt 0:00:02]} 38.
g4+ {[%emt 0:00:02]} Kg6 {[%emt 0:00:02]} 39. Nb6 {[%emt 0:00:05]} Bc5 {
[%emt 0:00:07]} 40. Nd7 {[%emt 0:00:04]} Bd6 {[%emt 0:00:04]} 41. h4 {[%emt 0:
00:09]} gxh4 {[%emt 0:00:03]} 42. Bxh4 {[%emt 0:00:00]} h5 {[%emt 0:00:02]} 43.
Bxf6 {[%emt 0:00:02]} hxg4 {[%emt 0:00:04]} 44. fxg4 {[%emt 0:00:02]} Bc6 {
[%emt 0:00:06]} 45. Nxe5+ {[%emt 0:00:11]} Kxf6 {[%emt 0:00:11]} 46. Nxc6 {
[%emt 0:00:01]} Kg5 {[%emt 0:00:03]} 47. Nxd4 {[%emt 0:00:02]} Kxg4 {[%emt 0:
00:02]} 48. Ke3 {[%emt 0:00:05]} Kg5 {[%emt 0:00:02]} 49. Ke4 {[%emt 0:00:01]}
Kf6 {[%emt 0:00:02]} 50. Kd5 {[%emt 0:00:01]} Ke7 {[%emt 0:00:04]} 51. Nc6+ {
[%emt 0:00:02]} Kd7 {[%emt 0:00:04]} 52. d4 {[%emt 0:00:04]} Bf4 {[%emt 0:00:
06]} 53. Ne5+ {[%emt 0:00:03]} Kc7 {[%emt 0:00:07]} 54. Kc5 {[%emt 0:00:08]}
Kb7 {[%emt 0:00:07]} 55. Kxb4 {[%emt 0:00:01]} Kc7 {[%emt 0:00:02]} 56. Kc5 {
[%emt 0:00:02]} Kb7 {[%emt 0:00:02]} 57. b4 {[%emt 0:00:03]} Kc7 {[%emt 0:00:
04]} 58. b5 {[%emt 0:00:02]} Kb7 {[%emt 0:00:01]} 59. b4 {[%emt 0:00:03]} Kc7 {
[%emt 0:00:03]} 60. b6+ {[%emt 0:00:02]} Kb7 {[%emt 0:00:01]} 61. b5 {[%emt 0:
00:03]} Kc8 {[%emt 0:00:05]} 62. Kc6 {[%emt 0:00:04]} Kb8 {[%emt 0:00:02]} 63.
b7 {[%emt 0:00:04]} Bxe5 {[%emt 0:00:02]} 64. dxe5 {[%emt 0:00:03]} Ka7 {
[%emt 0:00:02]} 65. e6 {[%emt 0:00:05]} Kb8 {[%emt 0:00:01]} 66. e7 {[%emt 0:
00:01]} Ka7 {[%emt 0:00:01]} 67. b6+ {[%emt 0:00:01]} Ka6 {[%emt 0:00:04]} 68.
e8=Q {[%emt 0:00:03]} Ka5 {[%emt 0:00:01]} 69. Qa8+ {[%emt 0:00:02]} Kb4 {
[%emt 0:00:02]} 70. b8=Q {[%emt 0:00:04]} Kc4 {[%emt 0:00:02]} 71. Qf4+ {
[%emt 0:00:02]} Kd3 {[%emt 0:00:02]} 72. Qa3+ {[%emt 0:00:02]} Ke2 {[%emt 0:00:
02]} 73. Qh2+ {[%emt 0:00:04]} Kd1 {[%emt 0:00:02] KeenOrangeTeeth won by
resignation} 1-0

[Event "Fast Chess"]
[Site "ChessKid.com"]
[Date "2020.05.13"]
[Round "2"]
[White "Sasse, Gabriel"]
[Black "Halimi, Dorian"]
[Result "0-1"]
[ECO "C50"]
[WhiteElo "1334"]
[BlackElo "1301"]
[Annotator "Remis ist besser als verlieren"]
[PlyCount "50"]
[EventDate "2020.??.??"]
[TimeControl "600"]
[WhiteClock "0:08:29"]
[BlackClock "0:08:48"]

1. e4 {[%emt 0:00:02]} e5 {[%emt 0:00:03]} 2. Nf3 {[%emt 0:00:01]} Nc6 {
[%emt 0:00:02]} 3. Bc4 {[%emt 0:00:00]} h6 {[%emt 0:00:02]} 4. h3 {[%emt 0:00:
02]} a6 {[%emt 0:00:00]} 5. Nc3 {[%emt 0:00:01]} Nf6 {[%emt 0:00:02]} 6. Be2 {
[%emt 0:00:01]} d6 {[%emt 0:00:04]} 7. O-O {[%emt 0:00:02]} Nd4 {[%emt 0:00:02]
} 8. Nxd4 {[%emt 0:00:02]} exd4 {[%emt 0:00:01]} 9. Nb1 {[%emt 0:00:01]} Nxe4 {
[%emt 0:00:02]} 10. d3 {[%emt 0:00:02]} Nc5 {[%emt 0:00:03]} 11. Bh5 {[%emt 0:
00:03]} g6 {[%emt 0:00:05]} 12. Re1+ {[%emt 0:00:01]} Be7 {[%emt 0:00:03]} 13.
Bg4 {[%emt 0:00:07]} Bxg4 {[%emt 0:00:02]} 14. Qxg4 {[%emt 0:00:01]} O-O {
[%emt 0:00:03]} 15. Qxd4 {[%emt 0:00:02]} Bf6 {[%emt 0:00:09]} 16. Qb4 {
[%emt 0:00:14]} Re8 {[%emt 0:00:09]} 17. Rxe8+ {[%emt 0:00:03]} Qxe8 {[%emt 0:
00:01]} 18. Qd2 {[%emt 0:00:01]} Qe7 {[%emt 0:00:09]} 19. Qxh6 {[%emt 0:00:04]}
Qe1+ {[%emt 0:00:09]} 20. Kh2 {[%emt 0:00:03]} Be5+ {[%emt 0:00:04]} 21. g3 {
[%emt 0:00:02]} Qxf2+ {[%emt 0:00:03]} 22. Kh1 {[%emt 0:00:02]} Qf1+ {[%emt 0:
00:04]} 23. Kh2 {[%emt 0:00:02]} Qf2+ {[%emt 0:00:03]} 24. Kh1 {[%emt 0:00:02]}
Bxg3 {[%emt 0:00:04]} 25. Qd2 {[%emt 0:00:14]} Qf1# {[%emt 0:00:02]
FullMagentaEclipse won by checkmate} 0-1

[Event "Fast Chess"]
[Site "ChessKid.com"]
[Date "2020.05.13"]
[Round "2"]
[White "Horvath, Alexander"]
[Black "Li, Tobias"]
[Result "1-0"]
[ECO "C55"]
[WhiteElo "1339"]
[BlackElo "1360"]
[Annotator "Freibauer"]
[PlyCount "95"]
[EventDate "2020.??.??"]
[TimeControl "600"]
[WhiteClock "0:06:31"]
[BlackClock "0:07:16"]

1. e4 {[%emt 0:00:02]} e5 {[%emt 0:00:04]} 2. Nf3 {[%emt 0:00:01]} Nc6 {
[%emt 0:00:04]} 3. Bc4 {[%emt 0:00:03]} Bc5 {[%emt 0:00:03]} 4. Nc3 {[%emt 0:
00:06]} Nf6 {[%emt 0:00:12]} 5. Ng5 {[%emt 0:00:05]} O-O {[%emt 0:00:04]} 6.
Bxf7+ {[%emt 0:00:03]} Rxf7 {[%emt 0:00:01]} 7. Nxf7 {[%emt 0:00:02]} Kxf7 {
[%emt 0:00:00]} 8. d3 {[%emt 0:00:04]} h6 {[%emt 0:00:05]} 9. Be3 {[%emt 0:00:
07]} Bb6 {[%emt 0:00:08]} 10. Bxb6 {[%emt 0:00:02]} axb6 {[%emt 0:00:03]} 11.
Nd5 {[%emt 0:00:02]} Nxd5 {[%emt 0:00:12]} 12. exd5 {[%emt 0:00:00]} Ne7 {
[%emt 0:00:04]} 13. Qf3+ {[%emt 0:00:03]} Kg8 {[%emt 0:00:03]} 14. O-O {
[%emt 0:00:11]} Qf8 {[%emt 0:00:04]} 15. Qxf8+ {[%emt 0:00:05]} Kxf8 {[%emt 0:
00:03]} 16. f4 {[%emt 0:00:01]} exf4 {[%emt 0:00:08]} 17. Rxf4+ {[%emt 0:00:00]
} Kg8 {[%emt 0:00:02]} 18. Raf1 {[%emt 0:00:05]} Kh7 {[%emt 0:00:11]} 19. Re4 {
[%emt 0:00:06]} Nxd5 {[%emt 0:00:06]} 20. Re5 {[%emt 0:00:04]} Nf6 {[%emt 0:00:
03]} 21. Re7 {[%emt 0:00:03]} d6 {[%emt 0:00:06]} 22. Rxf6 {[%emt 0:00:03]} Bg4
{[%emt 0:00:09]} 23. Rff7 {[%emt 0:00:08]} Rg8 {[%emt 0:00:04]} 24. Kf2 {
[%emt 0:00:03]} Bd1 {[%emt 0:00:01]} 25. c3 {[%emt 0:00:05]} Bc2 {[%emt 0:00:
02]} 26. d4 {[%emt 0:00:02]} Bb1 {[%emt 0:00:02]} 27. a3 {[%emt 0:00:02]} c5 {
[%emt 0:00:07]} 28. dxc5 {[%emt 0:00:04]} bxc5 {[%emt 0:00:02]} 29. Rxb7 {
[%emt 0:00:02]} Bg6 {[%emt 0:00:01]} 30. Rfd7 {[%emt 0:00:03]} Be4 {[%emt 0:00:
03]} 31. Ra7 {[%emt 0:00:08]} d5 {[%emt 0:00:02]} 32. b3 {[%emt 0:00:10]} Rf8+
{[%emt 0:00:05]} 33. Kg3 {[%emt 0:00:02]} Rg8 {[%emt 0:00:12]} 34. Kf4 {
[%emt 0:00:02]} Bxg2 {[%emt 0:00:09]} 35. b4 {[%emt 0:00:01]} cxb4 {[%emt 0:00:
02]} 36. axb4 {[%emt 0:00:00]} Rc8 {[%emt 0:00:04]} 37. Rxg7+ {[%emt 0:00:03]}
Kh8 {[%emt 0:00:01]} 38. Rxg2 {[%emt 0:00:03]} Rxc3 {[%emt 0:00:04]} 39. Re2 {
[%emt 0:00:04]} Rc4+ {[%emt 0:00:03]} 40. Kg3 {[%emt 0:00:03]} Rc3+ {[%emt 0:
00:03]} 41. Kg2 {[%emt 0:00:03]} Rc8 {[%emt 0:00:03]} 42. b5 {[%emt 0:00:03]}
Rg8+ {[%emt 0:00:04]} 43. Kh1 {[%emt 0:00:02]} Rc8 {[%emt 0:00:09]} 44. b6 {
[%emt 0:00:04]} Rc1+ {[%emt 0:00:03]} 45. Kg2 {[%emt 0:00:02]} Rc8 {[%emt 0:00:
02]} 46. b7 {[%emt 0:00:02]} Rg8+ {[%emt 0:00:02]} 47. Kh3 {[%emt 0:00:03]} Rf8
{[%emt 0:00:04]} 48. Ra8 {[%emt 0:00:03] KeenOrangeTeeth won by resignation}
1-0

[Event "Fast Chess"]
[Site "ChessKid.com"]
[Date "2020.05.13"]
[Round "2"]
[White "Georgiev, Maximilian"]
[Black "Li, Patrick"]
[Result "1-0"]
[ECO "C50"]
[WhiteElo "1158"]
[BlackElo "1246"]
[Annotator "Remis ist besser als verlieren"]
[PlyCount "121"]
[EventDate "2020.??.??"]
[TimeControl "600"]
[WhiteClock "0:05:39"]
[BlackClock "0:07:16"]

1. e4 {[%emt 0:00:00]} e5 {[%emt 0:00:01]} 2. Nf3 {[%emt 0:00:01]} Nc6 {
[%emt 0:00:01]} 3. Bc4 {[%emt 0:00:01]} h6 {[%emt 0:00:03]} 4. O-O {[%emt 0:00:
02]} Nf6 {[%emt 0:00:01]} 5. Nc3 {[%emt 0:00:02]} Bc5 {[%emt 0:00:04]} 6. h3 {
[%emt 0:00:01]} d6 {[%emt 0:00:05]} 7. d3 {[%emt 0:00:02]} O-O {[%emt 0:00:02]}
8. a3 {[%emt 0:00:01]} Re8 {[%emt 0:00:01]} 9. b4 {[%emt 0:00:02]} Bb6 {
[%emt 0:00:02]} 10. b5 {[%emt 0:00:02]} Nd4 {[%emt 0:00:04]} 11. Nxd4 {[%emt 0:
00:02]} Bxd4 {[%emt 0:00:02]} 12. Bb2 {[%emt 0:00:04]} Be6 {[%emt 0:00:05]} 13.
Bxe6 {[%emt 0:00:03]} Rxe6 {[%emt 0:00:04]} 14. Rb1 {[%emt 0:00:02]} Bxc3 {
[%emt 0:00:11]} 15. Bxc3 {[%emt 0:00:02]} c6 {[%emt 0:00:09]} 16. bxc6 {
[%emt 0:00:02]} bxc6 {[%emt 0:00:05]} 17. Qf3 {[%emt 0:00:08]} d5 {[%emt 0:00:
13]} 18. exd5 {[%emt 0:00:02]} Qxd5 {[%emt 0:00:08]} 19. Qxd5 {[%emt 0:00:02]}
Nxd5 {[%emt 0:00:03]} 20. Bd2 {[%emt 0:00:05]} f6 {[%emt 0:00:11]} 21. Rb7 {
[%emt 0:00:06]} Re7 {[%emt 0:00:14]} 22. Rxe7 {[%emt 0:00:02]} Nxe7 {[%emt 0:
00:01]} 23. Bb4 {[%emt 0:00:02]} Nf5 {[%emt 0:00:02]} 24. g4 {[%emt 0:00:04]}
Nd4 {[%emt 0:00:02]} 25. Rc1 $4 {[%emt 0:00:05]} Ne2+ {[%emt 0:00:03]} 26. Kf1
{[%emt 0:00:05]} Nxc1 {[%emt 0:00:01]} 27. Ke1 {[%emt 0:00:02]} Na2 {[%emt 0:
00:04]} 28. Bc5 {[%emt 0:00:03]} Rb8 {[%emt 0:00:04]} 29. Kd2 {[%emt 0:00:03]}
Rb5 {[%emt 0:00:06]} 30. Bxa7 {[%emt 0:00:02]} Rb7 {[%emt 0:00:15]} 31. Bc5 {
[%emt 0:00:03]} Rb5 {[%emt 0:00:05]} 32. Be3 {[%emt 0:00:02]} Ra5 {[%emt 0:00:
15]} 33. Bb6 {[%emt 0:00:10]} Rxa3 {[%emt 0:00:04]} 34. Bc5 {[%emt 0:00:01]}
Ra5 {[%emt 0:00:03]} 35. Bb6 {[%emt 0:00:02]} Rb5 {[%emt 0:00:05]} 36. Be3 {
[%emt 0:00:02]} Nb4 {[%emt 0:00:02]} 37. c4 {[%emt 0:00:03]} Rb7 {[%emt 0:00:
10]} 38. f3 {[%emt 0:00:08]} Na6 {[%emt 0:00:09]} 39. f4 {[%emt 0:00:04]} exf4
{[%emt 0:00:03]} 40. Bxf4 {[%emt 0:00:04]} Rb2+ {[%emt 0:00:02]} 41. Kc3 {
[%emt 0:00:03]} Rf2 {[%emt 0:00:07]} 42. Bg3 {[%emt 0:00:04]} Rf3 {[%emt 0:00:
04]} 43. Bd6 {[%emt 0:00:05]} Rxh3 {[%emt 0:00:03]} 44. Kb3 {[%emt 0:00:06]}
Rh4 {[%emt 0:00:06]} 45. Ka4 {[%emt 0:00:04]} Rxg4 {[%emt 0:00:02]} 46. Ka5 {
[%emt 0:00:02]} h5 {[%emt 0:00:06]} 47. Kxa6 {[%emt 0:00:01]} h4 {[%emt 0:00:
01]} 48. Kb6 {[%emt 0:00:02]} Rg6 {[%emt 0:00:01]} 49. Kxc6 {[%emt 0:00:03]}
Rh6 {[%emt 0:00:01]} 50. Kb5 {[%emt 0:00:03]} h3 {[%emt 0:00:00]} 51. c5 {
[%emt 0:00:02]} h2 {[%emt 0:00:01]} 52. Bxh2 {[%emt 0:00:01]} Rxh2 {[%emt 0:00:
02]} 53. c6 {[%emt 0:00:01]} Rc2 {[%emt 0:00:12]} 54. Kb6 {[%emt 0:00:01]} Kf8
{[%emt 0:00:02]} 55. c7 {[%emt 0:00:02]} Rxc7 {[%emt 0:00:02]} 56. Kxc7 {
[%emt 0:00:01]} Ke7 {[%emt 0:00:02]} 57. d4 {[%emt 0:00:02]} f5 {[%emt 0:00:00]
} 58. d5 {[%emt 0:00:01]} f4 {[%emt 0:00:01]} 59. d6+ {[%emt 0:00:00]} Ke8 {
[%emt 0:00:03]} 60. d7+ {[%emt 0:00:01]} Ke7 {[%emt 0:00:03]} 61. d8=Q+ {
[%emt 0:00:01] TallSnazzyBall won by resignation} 1-0

[Event "Fast Chess"]
[Site "ChessKid.com"]
[Date "2020.05.13"]
[Round "3"]
[White "Halimi, Dorian"]
[Black "Horvath, Alexander"]
[Result "0-1"]
[ECO "D00"]
[WhiteElo "1294"]
[BlackElo "1346"]
[PlyCount "42"]
[EventDate "2020.??.??"]
[TimeControl "600"]
[WhiteClock "0:07:43"]
[BlackClock "0:07:45"]

1. d4 {[%emt 0:00:02]} d5 {[%emt 0:00:02]} 2. Nf3 {[%emt 0:00:01]} Nf6 {
[%emt 0:00:02]} 3. Bf4 {[%emt 0:00:02]} Nc6 {[%emt 0:00:03]} 4. Nc3 {[%emt 0:
00:01]} Ne4 {[%emt 0:00:06]} 5. Nxd5 {[%emt 0:00:06]} Qxd5 {[%emt 0:00:03]} 6.
Qd3 {[%emt 0:00:12]} Nb4 {[%emt 0:00:10]} 7. Qd1 {[%emt 0:00:10]} Nxa2 {
[%emt 0:00:04]} 8. e3 {[%emt 0:00:17]} Nb4 {[%emt 0:00:09]} 9. b3 {[%emt 0:00:
02]} Be6 {[%emt 0:00:11]} 10. Bc4 {[%emt 0:00:02]} Qc6 {[%emt 0:00:12]} 11. Ne5
{[%emt 0:00:04]} Qb6 {[%emt 0:00:15]} 12. Bxe6 {[%emt 0:00:10]} Qxe6 {[%emt 0:
00:00]} 13. Qd3 {[%emt 0:00:07]} Nxd3+ {[%emt 0:00:03]} 14. cxd3 {[%emt 0:00:
03]} Nf6 {[%emt 0:00:06]} 15. O-O {[%emt 0:00:11]} Qxb3 {[%emt 0:00:03]} 16.
Rab1 {[%emt 0:00:08]} Qc2 {[%emt 0:00:10]} 17. Rxb7 {[%emt 0:00:05]} e6 {
[%emt 0:00:09]} 18. Rfb1 {[%emt 0:00:05]} Bd6 {[%emt 0:00:21]} 19. Rb8+ {
[%emt 0:00:21]} Rxb8 {[%emt 0:00:02]} 20. Rxb8+ {[%emt 0:00:01]} Ke7 {[%emt 0:
00:03]} 21. Rxh8 {[%emt 0:00:06]} Qc1# {[%emt 0:00:04] KeenOrangeTeeth won by
checkmate} 0-1